[Event "Titled Tuesday Blitz March 14 Late 2023"]
[White "Delgado Rosas, Fatima Alexandra"]
[Black "Cramling Bellon, Anna"]
[WhiteFideId "6603963"]
[BlackFideId "32009232"]
[WhiteElo "2325"]
[BlackElo "1972"]
[Result "1/2-1/2"]
[Round "04"]
[TimeControl "180+1"]
[Date "2023.03.14"]
[WhiteClock "0:01:01"]
[BlackClock "0:00:06"]

1. d4 {[%clk 0:03:00]}  Nf6 {[%clk 0:02:58]} 2. c4 {[%clk 0:03:01]}  e6 {[%clk 0:02:55]} 3. Nc3 {[%clk 0:03:00]}  d5 {[%clk 0:02:54]} 4. Bg5 {[%clk 0:02:59]}  c6 {[%clk 0:02:54]} 5. e3 {[%clk 0:02:59]}  Be7 {[%clk 0:02:53]} 6. cxd5 {[%clk 0:02:59]}  exd5 {[%clk 0:02:53]} 7. Bd3 {[%clk 0:03:00]}  h6 {[%clk 0:02:53]} 8. Bh4 {[%clk 0:02:47]}  Bg4 {[%clk 0:02:52]} 9. Qc2 {[%clk 0:02:45]}  Nbd7 {[%clk 0:02:52]} 10. h3 {[%clk 0:02:44]}  Be6 {[%clk 0:02:50]} 11. Nge2 {[%clk 0:02:41]}  Rc8 {[%clk 0:02:50]} 12. O-O {[%clk 0:02:34]}  Bd6 {[%clk 0:02:39]} 13. Rae1 {[%clk 0:02:21]}  O-O {[%clk 0:02:38]} 14. f3 {[%clk 0:02:17]}  Qc7 {[%clk 0:02:29]} 15. e4 {[%clk 0:02:13]}  dxe4 {[%clk 0:02:13]} 16. fxe4 {[%clk 0:02:14]}  Nh5 {[%clk 0:00:50]} 17. e5 {[%clk 0:02:10]}  Bb4 {[%clk 0:00:50]} 18. g4 {[%clk 0:02:04]}  Nxe5 {[%clk 0:00:35]} 19. dxe5 {[%clk 0:01:58]}  Qxe5 {[%clk 0:00:36]} 20. Nf4 {[%clk 0:01:42]}  Qd4+ {[%clk 0:00:27]} 21. Qf2 {[%clk 0:01:40]}  Qxf2+ {[%clk 0:00:21]} 22. Rxf2 {[%clk 0:01:35]}  Nxf4 {[%clk 0:00:21]} 23. Rxf4 {[%clk 0:01:36]}  Bxc3 {[%clk 0:00:21]} 24. bxc3 {[%clk 0:01:36]}  g5 {[%clk 0:00:21]} 25. Rf6 {[%clk 0:01:28]}  gxh4 {[%clk 0:00:18]} 26. Re5 {[%clk 0:01:28]}  Kg7 {[%clk 0:00:15]} 27. g5 {[%clk 0:01:25]}  hxg5 {[%clk 0:00:10]} 28. Rf1 {[%clk 0:01:25]}  Rg8 {[%clk 0:00:04]} 29. Kh2 {[%clk 0:01:21]}  Bd5 {[%clk 0:00:04]} 30. Rxg5+ {[%clk 0:01:20]}  Kf8 {[%clk 0:00:04]} 31. Rg4 {[%clk 0:01:09]}  Rxg4 {[%clk 0:00:04]} 32. hxg4 {[%clk 0:01:10]}  Re8 {[%clk 0:00:04]} 33. c4 {[%clk 0:01:03]}  Be6 {[%clk 0:00:03]} 34. Kh3 {[%clk 0:01:01]}  Rd8 {[%clk 0:00:03]} 35. Rf3 {[%clk 0:00:59]}  Rd4 {[%clk 0:00:03]} 36. Bf5 {[%clk 0:00:56]}  Bxf5 {[%clk 0:00:03]} 37. gxf5 {[%clk 0:00:57]}  Rxc4 {[%clk 0:00:03]} 38. f6 {[%clk 0:00:58]}  Ke8 {[%clk 0:00:03]} 39. Re3+ {[%clk 0:00:58]}  Kd8 {[%clk 0:00:03]} 40. Re7 {[%clk 0:00:59]}  Rf4 {[%clk 0:00:03]} 41. Rxf7 {[%clk 0:00:59]}  Ke8 {[%clk 0:00:03]} 42. Re7+ {[%clk 0:00:59]}  Kf8 {[%clk 0:00:03]} 43. Rxb7 {[%clk 0:00:59]}  Rxf6 {[%clk 0:00:03]} 44. Rxa7 {[%clk 0:00:59]}  c5 {[%clk 0:00:02]} 45. Rc7 {[%clk 0:01:00]}  Rf5 {[%clk 0:00:02]} 46. Kxh4 {[%clk 0:01:00]}  Rd5 {[%clk 0:00:03]} 47. Kg4 {[%clk 0:01:00]}  Rd4+ {[%clk 0:00:03]} 48. Kf5 {[%clk 0:01:00]}  Ra4 {[%clk 0:00:04]} 49. Kf6 {[%clk 0:01:00]}  Ke8 {[%clk 0:00:04]} 50. Ke6 {[%clk 0:01:00]}  Kd8 {[%clk 0:00:04]} 51. Rxc5 {[%clk 0:00:58]}  Rxa2 {[%clk 0:00:04]} 52. Kd6 {[%clk 0:00:58]}  Ra6+ {[%clk 0:00:04]} 53. Kd5 {[%clk 0:00:58]}  Kd7 {[%clk 0:00:04]} 54. Rc1 {[%clk 0:00:59]}  Ra5+ {[%clk 0:00:04]} 55. Kc4 {[%clk 0:00:58]}  Kd6 {[%clk 0:00:05]} 56. Kb4 {[%clk 0:00:58]}  Rh5 {[%clk 0:00:04]} 57. Rc4 {[%clk 0:00:57]}  Re5 {[%clk 0:00:03]} 58. Rg4 {[%clk 0:00:58]}  Ke6 {[%clk 0:00:03]} 59. Rg6+ {[%clk 0:00:58]}  Kf5 {[%clk 0:00:04]} 60. Rg8 {[%clk 0:00:58]}  Re4+ {[%clk 0:00:04]} 61. Kc5 {[%clk 0:00:58]}  Re5+ {[%clk 0:00:04]} 62. Kd6 {[%clk 0:00:59]}  Re6+ {[%clk 0:00:05]} 63. Kd7 {[%clk 0:01:00]}  Re1 {[%clk 0:00:05]} 64. Rf8+ {[%clk 0:01:00]}  Kg4 {[%clk 0:00:06]} 65. Rg8+ {[%clk 0:01:01]}  Kf3 {[%clk 0:00:06]} 66. Kd6 {[%clk 0:01:01]}  Rd1+ {[%clk 0:00:06]} 67. Ke5 {[%clk 0:01:00]}  Re1+ {[%clk 0:00:06]} 68. Kf5 {[%clk 0:01:01]}  Ra1 {[%clk 0:00:06]} 1/2-1/2


[Site "https://www.chess.com"]

[Event "Titled Tuesday Blitz March 14 Late 2023"]
[White "Deviprasath, Sharvesh"]
[Black "Kraus, Tomas"]
[WhiteFideId "30938228"]
[BlackFideId "331708"]
[WhiteElo "2168"]
[BlackElo "2389"]
[Result "1-0"]
[Round "04"]
[TimeControl "180+1"]
[Date "2023.03.14"]
[WhiteClock "0:00:48"]
[BlackClock "0:00:04"]

1. Nf3 {[%clk 0:02:49]}  d5 {[%clk 0:02:59]} 2. c4 {[%clk 0:02:49]}  d4 {[%clk 0:02:59]} 3. d3 {[%clk 0:02:44]}  c5 {[%clk 0:02:53]} 4. b4 {[%clk 0:02:41]}  cxb4 {[%clk 0:02:52]} 5. a3 {[%clk 0:02:42]}  b3 {[%clk 0:02:53]} 6. Qxb3 {[%clk 0:02:42]}  Nc6 {[%clk 0:02:53]} 7. g3 {[%clk 0:02:43]}  e5 {[%clk 0:02:52]} 8. Bg2 {[%clk 0:02:43]}  Nf6 {[%clk 0:02:52]} 9. O-O {[%clk 0:02:43]}  Be7 {[%clk 0:02:50]} 10. e3 {[%clk 0:02:44]}  O-O {[%clk 0:02:49]} 11. exd4 {[%clk 0:02:44]}  exd4 {[%clk 0:02:49]} 12. Re1 {[%clk 0:02:43]}  Re8 {[%clk 0:02:42]} 13. Nbd2 {[%clk 0:02:24]}  Na5 {[%clk 0:02:38]} 14. Qc2 {[%clk 0:02:23]}  Bf5 {[%clk 0:02:28]} 15. Bb2 {[%clk 0:02:21]}  Nc6 {[%clk 0:02:24]} 16. Ne5 {[%clk 0:02:09]}  Nxe5 {[%clk 0:02:07]} 17. Rxe5 {[%clk 0:02:10]}  Bg6 {[%clk 0:01:58]} 18. Rae1 {[%clk 0:02:08]}  Nd7 {[%clk 0:01:31]} 19. Rd5 {[%clk 0:01:56]}  Qc7 {[%clk 0:01:22]} 20. Nb3 {[%clk 0:01:47]}  Nc5 {[%clk 0:01:18]} 21. Rxe7 {[%clk 0:01:37]}  Qxe7 {[%clk 0:01:17]} 22. Nxc5 {[%clk 0:01:36]}  Qe1+ {[%clk 0:01:17]} 23. Bf1 {[%clk 0:01:32]}  b6 {[%clk 0:01:01]} 24. Nb3 {[%clk 0:01:30]}  Rac8 {[%clk 0:00:44]} 25. Nxd4 {[%clk 0:01:27]}  Re7 {[%clk 0:00:29]} 26. Qc3 {[%clk 0:01:11]}  f6 {[%clk 0:00:27]} 27. Qxe1 {[%clk 0:01:08]}  Rxe1 {[%clk 0:00:27]} 28. Kg2 {[%clk 0:01:07]}  Rce8 {[%clk 0:00:24]} 29. Rd7 {[%clk 0:01:03]}  a5 {[%clk 0:00:20]} 30. h4 {[%clk 0:01:02]}  h5 {[%clk 0:00:18]} 31. Rd6 {[%clk 0:00:57]}  Rd1 {[%clk 0:00:09]} 32. Rxb6 {[%clk 0:00:50]}  Ree1 {[%clk 0:00:05]} 33. Be2 {[%clk 0:00:49]}  Rg1+ {[%clk 0:00:04]} 34. Kf3 {[%clk 0:00:49]}  Rb1 {[%clk 0:00:04]} 35. c5 {[%clk 0:00:48]} 1-0


[Site "https://www.chess.com"]

[Event "Titled Tuesday Blitz March 14 Late 2023"]
[White "Di Nicolantonio, Lucas"]
[Black "Chigaev, Maksim"]
[WhiteFideId "680460"]
[BlackFideId "4108116"]
[WhiteElo "2358"]
[BlackElo "2547"]
[Result "0-1"]
[Round "04"]
[TimeControl "180+1"]
[Date "2023.03.14"]
[WhiteClock "0:00:52"]
[BlackClock "0:01:16"]

1. Nf3 {[%clk 0:03:00]}  Nf6 {[%clk 0:02:55]} 2. c4 {[%clk 0:03:01]}  e6 {[%clk 0:02:55]} 3. Nc3 {[%clk 0:03:01]}  d5 {[%clk 0:02:55]} 4. e3 {[%clk 0:03:02]}  c6 {[%clk 0:02:56]} 5. b3 {[%clk 0:03:02]}  a6 {[%clk 0:02:56]} 6. Bb2 {[%clk 0:03:02]}  b5 {[%clk 0:02:56]} 7. d4 {[%clk 0:02:53]}  Nbd7 {[%clk 0:02:52]} 8. Bd3 {[%clk 0:02:53]}  Be7 {[%clk 0:02:43]} 9. O-O {[%clk 0:02:53]}  O-O {[%clk 0:02:43]} 10. e4 {[%clk 0:02:53]}  b4 {[%clk 0:02:43]} 11. e5 {[%clk 0:02:25]}  bxc3 {[%clk 0:02:41]} 12. exf6 {[%clk 0:02:26]}  cxb2 {[%clk 0:02:40]} 13. fxe7 {[%clk 0:02:26]}  Qxe7 {[%clk 0:02:36]} 14. Rb1 {[%clk 0:02:27]}  Bb7 {[%clk 0:02:35]} 15. Rxb2 {[%clk 0:02:22]}  c5 {[%clk 0:02:35]} 16. Re1 {[%clk 0:02:17]}  cxd4 {[%clk 0:02:22]} 17. Nxd4 {[%clk 0:02:13]}  Qf6 {[%clk 0:02:17]} 18. cxd5 {[%clk 0:02:00]}  Bxd5 {[%clk 0:02:15]} 19. Rd2 {[%clk 0:01:53]}  Nc5 {[%clk 0:01:57]} 20. Bb1 {[%clk 0:01:53]}  g6 {[%clk 0:01:45]} 21. b4 {[%clk 0:01:49]}  Nd7 {[%clk 0:01:43]} 22. a4 {[%clk 0:01:45]}  Nb6 {[%clk 0:01:37]} 23. Ba2 {[%clk 0:01:40]}  Bxa2 {[%clk 0:01:26]} 24. Rxa2 {[%clk 0:01:39]}  Rad8 {[%clk 0:01:25]} 25. Rd2 {[%clk 0:01:39]}  Nc4 {[%clk 0:01:24]} 26. Rd3 {[%clk 0:00:52]}  Nb2 {[%clk 0:01:19]} 27. Qf3 {[%clk 0:00:52]}  Qxf3 {[%clk 0:01:16]} 0-1


[Site "https://www.chess.com"]

[Event "Titled Tuesday Blitz March 14 Late 2023"]
[White "Dzierzak, Radoslaw"]
[Black "Weetik, Vjacheslav"]
[WhiteFideId "1161407"]
[BlackFideId "4153472"]
[WhiteElo "2166"]
[BlackElo "2469"]
[Result "1-0"]
[Round "04"]
[TimeControl "180+1"]
[Date "2023.03.14"]
[WhiteClock "0:01:04"]
[BlackClock "0:00:05"]

1. e4 {[%clk 0:02:49]}  c6 {[%clk 0:03:00]} 2. Nf3 {[%clk 0:02:46]}  d5 {[%clk 0:03:00]} 3. Nc3 {[%clk 0:02:46]}  dxe4 {[%clk 0:03:01]} 4. Nxe4 {[%clk 0:02:47]}  Nf6 {[%clk 0:03:01]} 5. Qe2 {[%clk 0:02:47]}  Nxe4 {[%clk 0:03:02]} 6. Qxe4 {[%clk 0:02:48]}  Nd7 {[%clk 0:03:02]} 7. Bc4 {[%clk 0:02:48]}  Nf6 {[%clk 0:03:03]} 8. Ne5 {[%clk 0:02:48]}  e6 {[%clk 0:03:03]} 9. Qe2 {[%clk 0:02:49]}  b5 {[%clk 0:03:01]} 10. Bb3 {[%clk 0:02:48]}  Qc7 {[%clk 0:03:00]} 11. d4 {[%clk 0:02:48]}  Bd6 {[%clk 0:03:01]} 12. Bf4 {[%clk 0:02:48]}  O-O {[%clk 0:02:56]} 13. O-O {[%clk 0:02:48]}  a5 {[%clk 0:02:43]} 14. c3 {[%clk 0:02:48]}  Nd5 {[%clk 0:02:31]} 15. Bg3 {[%clk 0:02:47]}  a4 {[%clk 0:02:29]} 16. Bc2 {[%clk 0:02:47]}  a3 {[%clk 0:02:18]} 17. b3 {[%clk 0:02:42]}  c5 {[%clk 0:01:39]} 18. c4 {[%clk 0:02:24]}  bxc4 {[%clk 0:01:29]} 19. bxc4 {[%clk 0:02:23]}  Nb4 {[%clk 0:01:12]} 20. Be4 {[%clk 0:01:56]}  Bb7 {[%clk 0:01:06]} 21. dxc5 {[%clk 0:01:55]}  Bxc5 {[%clk 0:00:14]} 22. Ng6 {[%clk 0:01:35]}  Qb6 {[%clk 0:00:12]} 23. Nxf8 {[%clk 0:01:29]}  Rxf8 {[%clk 0:00:11]} 24. Rab1 {[%clk 0:01:29]}  Bxe4 {[%clk 0:00:08]} 25. Qxe4 {[%clk 0:01:30]}  Qa6 {[%clk 0:00:08]} 26. Qe2 {[%clk 0:01:08]}  f5 {[%clk 0:00:08]} 27. Be5 {[%clk 0:01:07]}  Rc8 {[%clk 0:00:05]} 28. Bc3 {[%clk 0:01:04]} 1-0


[Site "https://www.chess.com"]

[Event "Titled Tuesday Blitz March 14 Late 2023"]
[White "Erigaisi Arjun"]
[Black "Adewumi, Tanitoluwa"]
[WhiteFideId "35009192"]
[BlackFideId "30966396"]
[WhiteElo "2737"]
[BlackElo "2812"]
[Result "1-0"]
[Round "04"]
[TimeControl "180+1"]
[Date "2023.03.14"]
[WhiteClock "0:01:11"]
[BlackClock "0:00:02"]

1. c4 {[%clk 0:03:00]}  e5 {[%clk 0:02:58]} 2. d3 {[%clk 0:03:00]}  Nc6 {[%clk 0:02:59]} 3. Nf3 {[%clk 0:02:58]}  Nf6 {[%clk 0:02:58]} 4. a3 {[%clk 0:02:56]}  d6 {[%clk 0:02:57]} 5. Nc3 {[%clk 0:02:54]}  g6 {[%clk 0:02:57]} 6. g3 {[%clk 0:02:53]}  Bg7 {[%clk 0:02:55]} 7. Bg2 {[%clk 0:02:53]}  O-O {[%clk 0:02:56]} 8. O-O {[%clk 0:02:54]}  Be6 {[%clk 0:02:54]} 9. e4 {[%clk 0:02:51]}  Nd4 {[%clk 0:02:50]} 10. Nxd4 {[%clk 0:02:48]}  exd4 {[%clk 0:02:51]} 11. Ne2 {[%clk 0:02:48]}  c5 {[%clk 0:02:48]} 12. h3 {[%clk 0:02:48]}  a6 {[%clk 0:02:46]} 13. f4 {[%clk 0:02:48]}  b5 {[%clk 0:02:44]} 14. f5 {[%clk 0:02:45]}  Bd7 {[%clk 0:02:35]} 15. b3 {[%clk 0:02:45]}  Rb8 {[%clk 0:02:26]} 16. g4 {[%clk 0:02:42]}  h6 {[%clk 0:02:03]} 17. g5 {[%clk 0:02:37]}  hxg5 {[%clk 0:01:59]} 18. Bxg5 {[%clk 0:02:38]}  Qe8 {[%clk 0:01:53]} 19. Qd2 {[%clk 0:02:28]}  Nh5 {[%clk 0:01:43]} 20. Bf3 {[%clk 0:01:56]}  Nf6 {[%clk 0:01:16]} 21. Nf4 {[%clk 0:01:45]}  Nh7 {[%clk 0:01:11]} 22. Nd5 {[%clk 0:01:45]}  f6 {[%clk 0:00:33]} 23. Bf4 {[%clk 0:01:44]}  Ng5 {[%clk 0:00:16]} 24. Bxg5 {[%clk 0:01:42]}  fxg5 {[%clk 0:00:17]} 25. Qxg5 {[%clk 0:01:42]}  gxf5 {[%clk 0:00:16]} 26. Bh5 {[%clk 0:01:19]}  Qe6 {[%clk 0:00:04]} 27. Ne7+ {[%clk 0:01:10]}  Kh8 {[%clk 0:00:04]} 28. Bg6 {[%clk 0:01:11]}  Be5 {[%clk 0:00:02]} 29. Qh6# {[%clk 0:01:11]} 1-0


[Site "https://www.chess.com"]

[Event "Titled Tuesday Blitz March 14 Late 2023"]
[White "Fus, Jakub"]
[Black "Quinones Garcia, Santiago"]
[WhiteFideId "1193023"]
[BlackFideId "4408497"]
[WhiteElo "2335"]
[BlackElo "2263"]
[Result "0-1"]
[Round "04"]
[TimeControl "180+1"]
[Date "2023.03.14"]
[WhiteClock "0:00:05"]
[BlackClock "0:00:19"]

1. e4 {[%clk 0:03:00]}  e5 {[%clk 0:02:59]} 2. Nf3 {[%clk 0:03:00]}  Nc6 {[%clk 0:03:00]} 3. Bb5 {[%clk 0:02:59]}  a6 {[%clk 0:03:01]} 4. Ba4 {[%clk 0:02:59]}  Nf6 {[%clk 0:03:01]} 5. d3 {[%clk 0:02:59]}  b5 {[%clk 0:03:00]} 6. Bb3 {[%clk 0:02:59]}  Be7 {[%clk 0:03:01]} 7. Nc3 {[%clk 0:02:59]}  O-O {[%clk 0:03:00]} 8. O-O {[%clk 0:02:59]}  d6 {[%clk 0:02:57]} 9. a3 {[%clk 0:02:59]}  Na5 {[%clk 0:02:56]} 10. Ba2 {[%clk 0:02:58]}  c5 {[%clk 0:02:57]} 11. Bg5 {[%clk 0:02:57]}  Be6 {[%clk 0:02:54]} 12. Bxf6 {[%clk 0:02:55]}  Bxf6 {[%clk 0:02:54]} 13. b4 {[%clk 0:02:54]}  Nc6 {[%clk 0:02:53]} 14. Nd5 {[%clk 0:02:54]}  Bxd5 {[%clk 0:02:51]} 15. Bxd5 {[%clk 0:02:55]}  Rc8 {[%clk 0:02:45]} 16. c3 {[%clk 0:02:55]}  Qd7 {[%clk 0:02:41]} 17. Qd2 {[%clk 0:02:48]}  Ne7 {[%clk 0:02:37]} 18. Bb3 {[%clk 0:02:45]}  d5 {[%clk 0:02:31]} 19. exd5 {[%clk 0:02:29]}  Nxd5 {[%clk 0:02:32]} 20. Rac1 {[%clk 0:02:13]}  Rfd8 {[%clk 0:02:28]} 21. g3 {[%clk 0:02:06]}  Nb6 {[%clk 0:02:16]} 22. bxc5 {[%clk 0:01:51]}  Rxc5 {[%clk 0:02:16]} 23. Qe3 {[%clk 0:01:50]}  Rdc8 {[%clk 0:01:44]} 24. d4 {[%clk 0:01:50]}  exd4 {[%clk 0:01:44]} 25. cxd4 {[%clk 0:01:51]}  Rxc1 {[%clk 0:01:41]} 26. Rxc1 {[%clk 0:01:52]}  Rxc1+ {[%clk 0:01:30]} 27. Qxc1 {[%clk 0:01:53]}  g6 {[%clk 0:01:30]} 28. Qc5 {[%clk 0:01:51]}  Qf5 {[%clk 0:01:09]} 29. Qxf5 {[%clk 0:00:55]}  gxf5 {[%clk 0:01:10]} 30. Kf1 {[%clk 0:00:55]}  Kf8 {[%clk 0:01:04]} 31. Ke2 {[%clk 0:00:52]}  Be7 {[%clk 0:01:04]} 32. Ne5 {[%clk 0:00:51]}  f6 {[%clk 0:01:01]} 33. Nc6 {[%clk 0:00:48]}  Bxa3 {[%clk 0:01:01]} 34. Be6 {[%clk 0:00:45]}  f4 {[%clk 0:00:59]} 35. Kd3 {[%clk 0:00:43]}  fxg3 {[%clk 0:00:58]} 36. hxg3 {[%clk 0:00:40]}  Bd6 {[%clk 0:00:57]} 37. g4 {[%clk 0:00:40]}  Bc7 {[%clk 0:00:45]} 38. d5 {[%clk 0:00:29]}  Nc4 {[%clk 0:00:38]} 39. Kd4 {[%clk 0:00:24]}  Bb6+ {[%clk 0:00:38]} 40. Kc3 {[%clk 0:00:24]}  Bxf2 {[%clk 0:00:39]} 41. Bc8 {[%clk 0:00:20]}  a5 {[%clk 0:00:38]} 42. Ba6 {[%clk 0:00:20]}  Be1+ {[%clk 0:00:34]} 43. Kd3 {[%clk 0:00:18]}  Nd6 {[%clk 0:00:31]} 44. Nd4 {[%clk 0:00:18]}  b4 {[%clk 0:00:29]} 45. Nb5 {[%clk 0:00:07]}  Nxb5 {[%clk 0:00:27]} 46. Bxb5 {[%clk 0:00:08]}  Ke7 {[%clk 0:00:27]} 47. Ba4 {[%clk 0:00:08]}  Kd6 {[%clk 0:00:27]} 48. Ke4 {[%clk 0:00:08]}  Bc3 {[%clk 0:00:24]} 49. Bb3 {[%clk 0:00:03]}  Kc5 {[%clk 0:00:22]} 50. Ba4 {[%clk 0:00:04]}  Be5 {[%clk 0:00:18]} 51. Bd1 {[%clk 0:00:03]}  Kc4 {[%clk 0:00:18]} 52. Be2+ {[%clk 0:00:01]}  Kc3 {[%clk 0:00:18]} 53. Kf5 {[%clk 0:00:01]}  b3 {[%clk 0:00:18]} 54. g5 {[%clk 0:00:01]}  b2 {[%clk 0:00:18]} 55. Bd3 {[%clk 0:00:01]}  Kxd3 {[%clk 0:00:18]} 56. gxf6 {[%clk 0:00:02]}  Bxf6 {[%clk 0:00:17]} 57. Kxf6 {[%clk 0:00:03]}  b1=Q {[%clk 0:00:18]} 58. d6 {[%clk 0:00:03]}  Qb6 {[%clk 0:00:18]} 59. Ke7 {[%clk 0:00:04]}  Qxd6+ {[%clk 0:00:18]} 60. Kxd6 {[%clk 0:00:05]}  a4 {[%clk 0:00:19]} 0-1


[Site "https://www.chess.com"]

[Event "Titled Tuesday Blitz March 14 Late 2023"]
[White "Galchenko, Matvey"]
[Black "Skytte, Rasmus"]
[WhiteFideId "24175480"]
[BlackFideId "1404210"]
[WhiteElo "2404"]
[BlackElo "2418"]
[Result "1/2-1/2"]
[Round "04"]
[TimeControl "180+1"]
[Date "2023.03.14"]
[WhiteClock "0:00:07"]
[BlackClock "0:00:07"]

1. f4 {[%clk 0:03:00]}  d6 {[%clk 0:02:58]} 2. Nf3 {[%clk 0:02:58]}  Bg4 {[%clk 0:02:55]} 3. e4 {[%clk 0:02:54]}  d5 {[%clk 0:02:52]} 4. exd5 {[%clk 0:02:32]}  Nf6 {[%clk 0:02:51]} 5. d4 {[%clk 0:02:32]}  Nxd5 {[%clk 0:02:39]} 6. c3 {[%clk 0:02:08]}  e6 {[%clk 0:02:35]} 7. Bd3 {[%clk 0:02:06]}  c5 {[%clk 0:02:33]} 8. Qa4+ {[%clk 0:02:02]}  Nc6 {[%clk 0:02:14]} 9. Ne5 {[%clk 0:01:57]}  Nb6 {[%clk 0:02:07]} 10. Nxc6 {[%clk 0:01:49]}  Nxa4 {[%clk 0:02:04]} 11. Nxd8 {[%clk 0:01:49]}  Kxd8 {[%clk 0:02:04]} 12. Bc2 {[%clk 0:00:55]}  Nb6 {[%clk 0:02:00]} 13. dxc5 {[%clk 0:00:55]}  Bxc5 {[%clk 0:01:59]} 14. Nd2 {[%clk 0:00:56]}  Nd5 {[%clk 0:01:48]} 15. Ne4 {[%clk 0:00:43]}  Be3 {[%clk 0:01:40]} 16. Nf2 {[%clk 0:00:32]}  Bf5 {[%clk 0:01:32]} 17. Bb3 {[%clk 0:00:26]}  Bxc1 {[%clk 0:01:24]} 18. Rxc1 {[%clk 0:00:23]}  Nxf4 {[%clk 0:01:24]} 19. Rd1+ {[%clk 0:00:23]}  Kc7 {[%clk 0:01:23]} 20. g3 {[%clk 0:00:18]}  Nh3 {[%clk 0:01:12]} 21. Nd3 {[%clk 0:00:14]}  Rad8 {[%clk 0:01:08]} 22. Bc2 {[%clk 0:00:14]}  Rd5 {[%clk 0:00:59]} 23. Rf1 {[%clk 0:00:09]}  Rhd8 {[%clk 0:00:57]} 24. Nb4 {[%clk 0:00:07]}  Rxd1+ {[%clk 0:00:53]} 25. Bxd1 {[%clk 0:00:07]}  Ng5 {[%clk 0:00:45]} 26. Nc2 {[%clk 0:00:07]}  Ne4 {[%clk 0:00:36]} 27. Nd4 {[%clk 0:00:08]}  Bg6 {[%clk 0:00:33]} 28. Bc2 {[%clk 0:00:06]}  Nf6 {[%clk 0:00:32]} 29. Bb3 {[%clk 0:00:05]}  e5 {[%clk 0:00:30]} 30. Nf3 {[%clk 0:00:06]}  Re8 {[%clk 0:00:27]} 31. Ke2 {[%clk 0:00:06]}  Re7 {[%clk 0:00:26]} 32. Nh4 {[%clk 0:00:06]}  a6 {[%clk 0:00:23]} 33. Nf5 {[%clk 0:00:05]}  Bxf5 {[%clk 0:00:22]} 34. Rxf5 {[%clk 0:00:06]}  b5 {[%clk 0:00:21]} 35. h3 {[%clk 0:00:06]}  Kd6 {[%clk 0:00:21]} 36. Ke3 {[%clk 0:00:07]}  h6 {[%clk 0:00:19]} 37. g4 {[%clk 0:00:07]}  a5 {[%clk 0:00:18]} 38. g5 {[%clk 0:00:05]}  hxg5 {[%clk 0:00:17]} 39. Rxg5 {[%clk 0:00:06]}  g6 {[%clk 0:00:17]} 40. Rg1 {[%clk 0:00:06]}  Nd5+ {[%clk 0:00:16]} 41. Kf3 {[%clk 0:00:06]}  e4+ {[%clk 0:00:16]} 42. Ke2 {[%clk 0:00:07]}  Ke5 {[%clk 0:00:15]} 43. Rg5+ {[%clk 0:00:06]}  f5 {[%clk 0:00:15]} 44. Bxd5 {[%clk 0:00:06]}  Kxd5 {[%clk 0:00:15]} 45. Rxg6 {[%clk 0:00:07]}  f4 {[%clk 0:00:12]} 46. Rg5+ {[%clk 0:00:07]}  Kc4 {[%clk 0:00:12]} 47. Rg4 {[%clk 0:00:07]}  f3+ {[%clk 0:00:11]} 48. Ke3 {[%clk 0:00:08]}  b4 {[%clk 0:00:11]} 49. cxb4 {[%clk 0:00:07]}  axb4 {[%clk 0:00:11]} 50. Rf4 {[%clk 0:00:06]}  b3 {[%clk 0:00:10]} 51. a3 {[%clk 0:00:05]}  Kd5 {[%clk 0:00:10]} 52. Rf5+ {[%clk 0:00:05]}  Kc4 {[%clk 0:00:09]} 53. Rf4 {[%clk 0:00:05]}  Kd5 {[%clk 0:00:09]} 54. h4 {[%clk 0:00:06]}  Re5 {[%clk 0:00:09]} 55. Rf8 {[%clk 0:00:05]}  Rh5 {[%clk 0:00:09]} 56. Rd8+ {[%clk 0:00:05]}  Kc4 {[%clk 0:00:08]} 57. Kxe4 {[%clk 0:00:04]}  f2 {[%clk 0:00:08]} 58. Rf8 {[%clk 0:00:04]}  Rxh4+ {[%clk 0:00:08]} 59. Ke3 {[%clk 0:00:05]}  Rh2 {[%clk 0:00:08]} 60. a4 {[%clk 0:00:04]}  Kb4 {[%clk 0:00:07]} 61. Rf4+ {[%clk 0:00:05]}  Ka5 {[%clk 0:00:07]} 62. Rxf2 {[%clk 0:00:04]}  Rh3+ {[%clk 0:00:07]} 63. Kd4 {[%clk 0:00:04]}  Kxa4 {[%clk 0:00:07]} 64. Kc4 {[%clk 0:00:04]}  Rh4+ {[%clk 0:00:07]} 65. Kc5 {[%clk 0:00:05]}  Rh5+ {[%clk 0:00:07]} 66. Kc4 {[%clk 0:00:06]}  Rh4+ {[%clk 0:00:07]} 67. Kc5 {[%clk 0:00:06]}  Rh5+ {[%clk 0:00:07]} 68. Kc4 {[%clk 0:00:07]}  Rh4+ {[%clk 0:00:07]} 1/2-1/2


[Site "https://www.chess.com"]

[Event "Titled Tuesday Blitz March 14 Late 2023"]
[White "Gallegos Diaz, Carlos Alberto"]
[Black "Taboas Rodriguez, Daniel"]
[WhiteFideId "3900886"]
[BlackFideId "2208466"]
[WhiteElo "2362"]
[BlackElo "2365"]
[Result "0-1"]
[Round "04"]
[TimeControl "180+1"]
[Date "2023.03.14"]
[WhiteClock "0:00:15"]
[BlackClock "0:01:07"]

1. e4 {[%clk 0:03:00]}  e5 {[%clk 0:02:59]} 2. Nf3 {[%clk 0:03:00]}  Nc6 {[%clk 0:02:59]} 3. d3 {[%clk 0:03:00]}  Nf6 {[%clk 0:02:58]} 4. Be2 {[%clk 0:02:59]}  Bc5 {[%clk 0:02:59]} 5. O-O {[%clk 0:02:59]}  O-O {[%clk 0:02:59]} 6. c3 {[%clk 0:02:58]}  d5 {[%clk 0:02:59]} 7. Nbd2 {[%clk 0:02:57]}  a5 {[%clk 0:02:59]} 8. Qc2 {[%clk 0:02:55]}  b6 {[%clk 0:02:58]} 9. h3 {[%clk 0:02:54]}  Re8 {[%clk 0:02:58]} 10. Re1 {[%clk 0:02:54]}  Ba6 {[%clk 0:02:56]} 11. Bf1 {[%clk 0:02:53]}  d4 {[%clk 0:02:49]} 12. c4 {[%clk 0:02:11]}  Qd6 {[%clk 0:02:40]} 13. a3 {[%clk 0:02:09]}  Reb8 {[%clk 0:02:37]} 14. Nh4 {[%clk 0:02:02]}  g6 {[%clk 0:02:34]} 15. Ndf3 {[%clk 0:02:01]}  b5 {[%clk 0:02:32]} 16. cxb5 {[%clk 0:01:58]}  Bxb5 {[%clk 0:02:32]} 17. Bg5 {[%clk 0:01:51]}  Nd7 {[%clk 0:02:30]} 18. Rec1 {[%clk 0:01:36]}  a4 {[%clk 0:02:28]} 19. Nd2 {[%clk 0:01:33]}  Na5 {[%clk 0:02:28]} 20. Rab1 {[%clk 0:01:31]}  Ba6 {[%clk 0:02:21]} 21. Qxa4 {[%clk 0:01:18]}  Bxd3 {[%clk 0:01:45]} 22. Bxd3 {[%clk 0:01:08]}  Nb3 {[%clk 0:01:44]} 23. Qc4 {[%clk 0:01:07]}  Nxc1 {[%clk 0:01:36]} 24. Qxc1 {[%clk 0:01:04]}  Bb6 {[%clk 0:01:30]} 25. Nc4 {[%clk 0:01:03]}  Qe6 {[%clk 0:01:29]} 26. b4 {[%clk 0:00:50]}  c5 {[%clk 0:01:27]} 27. b5 {[%clk 0:00:49]}  Ba5 {[%clk 0:01:26]} 28. Bd2 {[%clk 0:00:35]}  Bxd2 {[%clk 0:01:24]} 29. Qxd2 {[%clk 0:00:36]}  Nb6 {[%clk 0:01:24]} 30. Qc2 {[%clk 0:00:29]}  Nxc4 {[%clk 0:01:23]} 31. Bxc4 {[%clk 0:00:30]}  Qf6 {[%clk 0:01:23]} 32. Nf3 {[%clk 0:00:30]}  Rxa3 {[%clk 0:01:24]} 33. b6 {[%clk 0:00:29]}  Rc3 {[%clk 0:01:23]} 34. Qa4 {[%clk 0:00:27]}  Rxb6 {[%clk 0:01:22]} 35. Rxb6 {[%clk 0:00:26]}  Rc1+ {[%clk 0:01:08]} 36. Kh2 {[%clk 0:00:24]}  Qf4+ {[%clk 0:01:08]} 37. g3 {[%clk 0:00:23]}  Qxf3 {[%clk 0:01:09]} 38. Qe8+ {[%clk 0:00:19]}  Kg7 {[%clk 0:01:09]} 39. Qxe5+ {[%clk 0:00:18]}  Kh6 {[%clk 0:01:08]} 40. Rf6 {[%clk 0:00:15]}  Rh1# {[%clk 0:01:07]} 0-1


[Site "https://www.chess.com"]